bitfinex-derivatives/quotes_ETHF0:USTF0_20250314
["timestamp","ask_amount","ask_price","bid_price","bid_amount"]
[1741972317698,2.43809,1934.4,1934.3,2.45864]
[1741972318493,2.43809,1934.4,1934.3,1.4247]
[1741972318699,2.43809,1934.4,1934.3,2.45864]
[1741972318898,2.43809,1934.4,1934.3,1.4247]
[1741972319195,2.43809,1934.4,1934.3,2.45864]
[1741972319692,0.6791,1934.6,1934.5,1.03383]
[1741972319894,1.71291,1934.6,1934.5,1.03383]
[1741972320391,1.40863914,1934.7,1934.6,1.03378]
[1741972320597,0.00773914,1934.7,1934.6,4.24158]
[1741972320793,1.04146914,1934.7,1934.6,4.24158]
[1741972321196,1.04146914,1934.7,1934.6,3.2078]
[1741972321498,2.42976914,1934.7,1934.6,3.2078]
[1741972321794,2.42976914,1934.7,1934.6,5.57798]
[1741972321994,2.42976914,1934.7,1934.6,1.3364]
[1741972322194,2.42976914,1934.7,1934.6,2.37018]
[1741972322502,2.42976914,1934.7,1934.6,1.3364]
[1741972324594,2.42976914,1934.7,1934.2,3.2078]
[1741972324595,1.39603914,1934.7,1934.2,3.2078]
[1741972324894,2.58459,1934.5,1934.0,4.5957]
[1741972325097,1.03405,1934.1,1934.0,4.5197]
[1741972325592,4.62432,1934.4,1934.0,4.5197]
[1741972325593,2.1085,1934.2,1934.0,4.5197]
[1741972325802,1.03405,1934.1,1934.0,3.2078]
[1741972325995,2.41465,1934.1,1934.0,3.2078]
[1741972326293,1.03399,1934.3,1934.2,1.03397]
[1741972326497,1.03394,1934.3,1934.2,3.2078]
[1741972326693,2.58498,1934.3,1934.0,3.2078]
[1741972327000,1.03405,1934.1,1934.0,4.24188]
[1741972327208,2.41463,1934.2,1934.1,1.03405]
[1741972328598,1.03403,1934.2,1934.1,1.03405]
[1741972328799,2.44096,1934.3,1934.2,1.03395]
[1741972329200,1.03404,1934.2,1934.1,1.034]
[1741972329904,2.44098,1934.3,1934.2,1.03399]
[1741972330104,2.44098,1934.3,1934.2,4.24179]
[1741972330601,0.7279,1934.5,1934.4,1.03389]
[1741972330807,1.76173,1934.5,1934.4,3.2078]
[1741972330998,1.03394,1934.3,1934.2,3.2078]
[1741972331398,3.05404,1934.3,1934.2,3.2078]
[1741972331601,1.03399,1934.2,1934.1,5.86001169]
[1741972331902,2.37479,1934.2,1934.1,5.86001169]
[1741972333404,1.03415,1933.9,1933.8,34.28061]
[1741972333700,1.03414,1934.0,1933.9,1.03411]
[1741972333907,2.0884,1934.1,1933.8,33.2464]
[1741972334201,1.03415,1933.9,1933.8,3.2078]
[1741972334604,1.03431,1933.6,1933.5,5.60877]
[1741972335002,1.03431,1933.6,1933.5,4.5744]
[1741972335412,1.03428,1933.7,1933.6,1.03426]
[1741972335608,2.5853,1934.0,1933.5,4.5744]
[1741972335609,2.1376,1934.0,1933.5,4.5744]
[1741972335905,2.5848,1934.4,1934.0,1.03404]
[1741972335906,1.03405,1934.1,1934.0,1.03404]
[1741972336103,1.03405,1934.1,1934.0,1.70884]
[1741972336304,1.03405,1934.1,1934.0,2.39904]
[1741972336504,1.03405,1934.1,1934.0,1.365]
[1741972336707,2.45465,1934.1,1934.0,2.3991]
[1741972338105,1.0341,1934.0,1933.9,3.2078]
[1741972338299,2.4547,1934.0,1933.9,3.2078]
[1741972342905,1.03421,1933.8,1933.7,3.8878]
[1741972343206,1.03421,1933.8,1933.7,3.2078]
[1741972344908,1.03421,1933.8,1933.7,4.24206]
[1741972346504,1.03421,1933.8,1933.7,4.24201]
[1741972346910,2.35861,1933.8,1933.7,4.24201]
[1741972347108,2.35861,1933.8,1933.7,3.2078]
[1741972347309,3.05661,1933.8,1933.7,3.2078]
[1741972347497,3.05661,1933.8,1933.7,4.24206]
[1741972347698,3.05661,1933.8,1933.7,3.2078]
[1741972348309,3.05661,1933.8,1933.7,4.6115]
[1741972348705,3.05661,1933.8,1933.7,5.64576]
[1741972349011,3.05661,1933.8,1933.7,4.6115]
[1741972349406,1.73221,1933.8,1933.7,5.64576]
[1741972349914,1.03421,1933.8,1933.7,5.64576]
[1741972350104,1.03421,1933.9,1933.8,1.03416]
[1741972350305,1.03421,1933.9,1933.8,3.13261]
[1741972350513,1.03421,1933.9,1933.8,2.0984]
[1741972351010,1.03421,1933.9,1933.8,3.13261]
[1741972351310,1.03421,1933.9,1933.8,1.416]
[1741972351510,1.71071,1933.9,1933.8,1.416]
[1741972353313,1.71071,1933.9,1933.8,2.45021]
[1741972353512,1.71071,1933.9,1933.8,1.416]
[1741972353711,1.71071,1933.9,1933.8,2.45021]
[1741972354113,1.71071,1933.9,1933.8,1.416]
[1741972354308,1.71071,1933.9,1933.8,2.45021]
[1741972354514,1.71071,1933.9,1933.8,1.416]
[1741972356123,3.06471,1933.9,1933.8,1.416]
[1741972356310,2.0305,1933.9,1933.5,3.926]
[1741972356512,1.03426,1933.7,1933.6,1.4362]
[1741972356823,1.03426,1933.7,1933.6,2.47051]
[1741972357117,2.38826,1933.7,1933.6,2.47051]
[1741972357321,2.38826,1933.7,1933.6,1.4362]
[1741972361819,1.354,1933.7,1933.5,3.2078]
[1741972362016,3.28145,1933.8,1933.5,4.6413]
[1741972362017,3.14831,1933.6,1933.5,4.6413]
[1741972362421,1.03431,1933.6,1933.5,4.6413]
[1741972362624,1.03431,1933.6,1933.5,5.67567]
[1741972363424,1.03431,1933.6,1933.5,4.6413]
[1741972368125,1.03431,1933.6,1933.5,1.4335]
[1741972368323,1.03442,1933.4,1933.3,3.2078]
[1741972368525,1.03442,1933.4,1933.3,4.5885]
[1741972369026,3.08952,1933.4,1933.3,4.5885]
[1741972371324,3.08952,1933.4,1933.3,1.3807]
[1741972373433,1.03442,1933.4,1933.3,1.3807]
[1741972373634,3.06982,1933.4,1933.3,1.3807]
[1741972378632,1.03453,1933.2,1933.1,3.2078]
[1741972379935,1.03453,1933.2,1933.1,5.61778]
[1741972380234,1.03453,1933.2,1933.1,4.5832]
[1741972380532,2.45771,1933.3,1933.1,4.5832]
[1741972380739,3.26718914,1933.5,1933.2,2.4099]
[1741972380740,0.68123914,1933.5,1933.2,2.4099]
[1741972380935,1.03442,1933.4,1933.3,5.2456]
[1741972381134,1.03442,1933.4,1933.3,5.9228]
[1741972381737,2.45762,1933.4,1933.3,5.9228]
[1741972382235,1.03442,1933.4,1933.3,5.9228]
[1741972382536,1.04210914,1933.5,1933.4,1.03442]
[1741972382731,3.3112,1933.7,1933.6,1.03425]
[1741972382732,1.03432,1933.7,1933.6,1.03425]
[1741972382927,1.03432,1933.7,1933.6,3.2078]
[1741972383131,1.03437,1933.5,1933.4,4.6642]
[1741972383334,1.03437,1933.6,1933.5,1.03435]
[1741972383634,3.30957,1933.9,1933.6,1.03429]
[1741972383635,1.03431,1933.7,1933.6,1.03429]
[1741972383835,1.03431,1933.7,1933.6,4.24209]
[1741972384032,0.00775936,1933.8,1933.7,1.03426]
[1741972384732,3.25839,1934.3,1933.7,1.03426]
[1741972384733,3.2078,1934.9,1934.4,1.03386]
[1741972385035,3.2078,1934.9,1933.9,2.58532]
[1741972385036,2.58462,1934.5,1933.9,6.9288]
[1741972385238,1.0341,1934.0,1933.9,3.2078]
[1741972385441,1.03421,1933.8,1933.7,3.2078]
[1741972385828,1.03431,1933.6,1933.5,3.21555936]
[1741972386540,1.70361,1933.6,1933.5,3.21555936]
[1741972387243,1.70361,1933.6,1933.5,0.00775936]
[1741972387437,1.03431,1933.6,1933.5,0.00775936]
[1741972387638,1.03431,1933.6,1933.5,1.04212936]
[1741972388138,1.03431,1933.6,1933.5,0.00775936]
[1741972388341,1.0343,1933.7,1933.5,0.00775936]
[1741972388529,1.0343,1933.7,1933.6,1.03429]
[1741972388728,1.03431,1933.6,1933.5,1.04208936]
[1741972390540,1.03431,1933.6,1933.5,4.24992936]
[1741972390740,1.03431,1933.6,1933.5,3.21555936]
[1741972391337,1.03431,1933.6,1933.5,4.24992936]
[1741972392044,1.03431,1933.6,1933.5,3.21555936]
[1741972392748,2.3931,1933.7,1933.5,3.21555936]
[1741972393044,1.0343,1933.7,1933.6,1.03431]
[1741972393246,1.0343,1933.7,1933.6,1.71221]
[1741972393449,1.03426,1933.8,1933.7,1.03423]
[1741972393647,1.03426,1933.8,1933.7,4.24203]
[1741972394148,1.04192936,1933.9,1933.8,1.03421]
[1741972394450,1.03421,1933.8,1933.7,4.24203]
[1741972395452,1.03421,1933.8,1933.7,5.63513]
[1741972396950,1.03421,1933.8,1933.7,4.6009]
[1741972397147,1.75461,1933.8,1933.7,2.42736]
[1741972397356,1.75461,1933.8,1933.7,1.3931]
[1741972397658,3.09741,1933.8,1933.7,1.3931]
[1741972398656,1.03431,1933.6,1933.5,3.21555936]
[1741972398952,1.03431,1933.6,1933.5,1.46115936]
[1741972400254,1.03431,1933.6,1933.5,4.66895936]
[1741972401450,1.03431,1933.6,1933.5,5.70332936]
[1741972401751,1.03431,1933.6,1933.5,4.66895936]
[1741972402246,2.47861,1933.6,1933.5,4.66895936]
[1741972406159,2.47861,1933.6,1933.5,0.00775936]
[1741972414361,2.47861,1933.6,1933.5,3.21555936]
[1741972414560,2.47861,1933.6,1933.5,4.66095936]
[1741972419966,2.47861,1933.6,1933.5,0.00775936]
[1741972420271,6.19361,1933.6,1933.5,0.00775936]
[1741972421578,5.1593,1933.6,1933.5,0.00775936]
[1741972424072,5.1593,1933.6,1933.5,3.21555936]
[1741972424268,0.7204,1933.8,1933.5,3.21555936]
[1741972424474,0.71415936,1933.9,1933.7,3.2078]
[1741972424789,0.00775936,1933.9,1933.8,1.4313]
[1741972427875,0.00775936,1933.9,1933.5,3.92135936]
[1741972428075,0.00775936,1933.9,1933.5,3.21555936]
[1741972428379,3.72175936,1933.9,1933.6,1.4476]
[1741972428578,2.1255,1933.8,1933.6,1.4476]
[1741972428778,1.41,1933.7,1933.6,1.4476]
[1741972431168,2.705,1933.8,1933.6,1.4476]
[1741972431577,1.3176,1933.7,1933.6,1.4476]
[1741972433283,1.3874,1933.8,1933.6,1.4476]
[1741972433487,2.705,1933.8,1933.6,1.4476]
[1741972434372,1.3404,1933.7,1933.6,1.4476]
[1741972441579,0.6719,1933.8,1933.6,1.4476]
[1741972441789,0.6719,1933.8,1933.6,2.122]
[1741972442184,0.6719,1933.8,1933.7,1.4321]
[1741972442390,2.0281,1933.8,1933.7,1.4321]
[1741972446898,0.00775936,1933.9,1933.7,4.6399]
[1741972447194,0.00775936,1933.9,1933.8,2.0731]
[1741972451194,0.00775936,1933.9,1933.8,4.5731]
[1741972451900,0.6667,1934.6,1933.8,39.70028889]
[1741972452207,2.0656,1934.6,1934.1,3.2078]
[1741972452497,0.6738,1934.5,1934.2,1.3736]
[1741972452792,0.6667,1934.6,1934.3,3.2078]
[1741972452997,2.08045936,1934.5,1934.4,1.3736]
[1741972454601,1.71538936,1934.5,1934.4,1.3736]
[1741972456106,3.09208936,1934.5,1934.4,1.3736]
[1741972456907,1.03399,1934.2,1934.1,3.2078]
[1741972457909,1.03399,1934.2,1934.1,4.24185]
[1741972458110,1.03399,1934.2,1934.1,5.59165]
[1741972459215,1.03399,1934.2,1934.1,4.5576]
[1741972459909,1.03399,1934.2,1934.1,5.59165]
[1741972460809,3.26625936,1934.5,1934.2,1.03394]
[1741972460810,1.03398,1934.3,1934.2,1.03394]
[1741972461016,1.03392,1934.4,1934.3,1.03389]
[1741972461318,1.03392,1934.4,1934.3,5.62879]
[1741972461713,1.03392,1934.4,1934.3,4.5949]
[1741972462313,2.37992,1934.4,1934.3,4.5949]
[1741972462711,6.08692,1934.4,1934.1,3.2078]
[1741972462904,2.58513,1934.1,1933.6,9.06781169]
[1741972463106,2.58548,1933.9,1933.5,0.00775936]
[1741972463306,1.03431,1933.6,1933.5,1.39485936]
[1741972464007,1.03431,1933.6,1933.5,2.10685936]
[1741972464707,2.59236936,1934.5,1933.7,2.58566]
[1741972464916,2.7358,1934.4,1934.1,3.2078]
[1741972465122,2.38974,1934.3,1934.2,2.41146]
[1741972465415,2.38974,1934.3,1934.2,1.3775]
[1741972469914,3.94075,1934.3,1933.9,3.2078]
[1741972470115,1.3162,1934.2,1933.6,3.2078]
[1741972470412,1.03426,1933.7,1933.6,4.5585]
[1741972470613,1.03426,1933.7,1933.6,3.2078]
[1741972471207,2.35046,1933.7,1933.6,3.2078]
[1741972472822,1.03431,1933.6,1933.5,0.00775936]
[1741972473118,2.35051,1933.6,1933.5,0.00775936]
[1741972475421,9.26431,1933.6,1933.5,9.36e-06]
[1741972475628,9.34826486,1933.6,1933.5,9.36e-06]
[1741972475926,6.05651,1933.6,1933.5,9.36e-06]
[1741972477629,4.74031,1933.6,1933.5,9.36e-06]
[1741972477825,1.03431,1933.6,1933.5,9.36e-06]
[1741972478131,1.03431,1933.6,1933.5,2.48642936]
[1741972479324,2.58546,1933.9,1933.5,2.48642936]
[1741972479325,1.03417,1933.9,1933.8,1.03415]
[1741972479523,2.8295,1934.2,1933.8,5.79326]
[1741972479719,1.03405,1934.1,1934.0,4.24188]
[1741972480027,1.03405,1934.1,1934.0,3.2078]
[1741972480625,2.45825,1934.1,1934.0,3.2078]
[1741972481323,2.43933,1934.2,1934.0,3.2078]
[1741972481524,1.03403,1934.2,1934.1,1.03405]
[1741972482319,0.6608,1934.4,1934.0,3.2078]
[1741972482525,1.03394,1934.3,1934.2,3.2078]
[1741972482723,1.03394,1934.3,1934.2,4.24179]
[1741972482929,2.44994,1934.3,1934.2,3.2078]
[1741972486233,1.69473,1934.4,1934.3,2.45554]
[1741972486624,1.69473,1934.4,1934.3,1.4216]
[1741972486830,0.00775936,1934.5,1934.4,1.03389]
[1741972487027,1.04158936,1934.5,1934.4,1.4216]
[1741972487532,1.04158936,1934.5,1934.4,2.45549]
[1741972488336,0.00775936,1934.5,1934.4,2.45549]
[1741972490037,0.00775936,1934.5,1934.4,4.95549]
[1741972490536,1.03365,1934.9,1934.8,1.03367]
[1741972490735,1.03365,1934.9,1934.8,4.24147]
[1741972491338,1.69247,1935.0,1934.9,1.03362]
[1741972491532,0.6589,1935.0,1934.9,2.48472]
[1741972491738,0.66665936,1935.0,1934.9,2.48472]
[1741972493032,0.00775936,1935.0,1934.9,2.48472]
[1741972493229,0.00775936,1935.0,1934.9,8.63672]
[1741972493737,0.00775936,1935.0,1934.9,9.30002]
[1741972493940,0.00775936,1935.0,1934.9,6.80002]
[1741972494134,0.00775936,1935.0,1934.9,3.09802]
[1741972494339,0.00775936,1935.0,1934.9,2.43472]
[1741972494638,1.03362,1934.9,1934.8,3.2078]
[1741972494842,1.03367,1934.8,1934.7,0.00775936]
[1741972495042,1.75747,1934.8,1934.7,0.00775936]
[1741972495243,3.15877,1934.8,1934.7,0.00775936]
[1741972496535,3.15877,1934.8,1934.7,1.35515936]
[1741972497738,3.15877,1934.8,1934.7,2.38888936]
[1741972499035,3.15877,1934.8,1934.7,1.35515936]
[1741972500242,3.15877,1934.8,1934.7,0.00775936]
[1741972500940,1.03373,1934.7,1934.6,3.2078]
[1741972501141,2.47203,1934.7,1934.6,3.2078]
[1741972501941,2.47203,1934.7,1934.6,5.59318]
[1741972502139,0.7238,1934.8,1934.7,1.03373]
[1741972502339,1.75747,1934.8,1934.7,2.38533]
[1741972502542,1.75747,1934.8,1934.7,1.3516]
[1741972502743,3.19577,1934.8,1934.7,1.3516]
[1741972503550,3.19577,1934.8,1934.7,2.38533]
[1741972504045,3.19577,1934.8,1934.7,1.3516]
[1741972504241,0.66,1934.9,1934.7,1.3516]
[1741972504444,0.66,1934.9,1934.7,2.38528]
[1741972504642,2.44827,1934.8,1934.7,2.38528]
[1741972504950,0.66,1934.9,1934.8,1.03367]
[1741972505135,0.66,1934.9,1934.8,5.60537]
[1741972505340,1.69362,1934.9,1934.8,5.60537]
[1741972505537,0.00775936,1935.0,1934.9,1.03362]
[1741972505752,1.04132936,1935.0,1934.9,3.83712]
[1741972506249,1.04132936,1935.0,1934.9,6.09752]
[1741972506549,0.00775936,1935.0,1934.9,6.09752]
[1741972507842,0.00775936,1935.0,1934.9,8.59752]
[1741972509045,0.00775936,1935.0,1934.9,14.45753169]
[1741972511552,0.00775936,1935.0,1934.9,11.95753169]
[1741972511854,0.00775936,1935.0,1934.9,14.45753169]
[1741972512453,0.00775936,1935.0,1934.9,11.95753169]
[1741972513256,0.00775936,1935.0,1934.9,14.45753169]
[1741972515653,0.00775936,1935.0,1934.9,11.95553169]
[1741972515957,1.75262936,1935.0,1934.9,8.25753169]
[1741972516254,3.86782936,1935.0,1934.9,7.22391169]
[1741972517055,3.86782936,1935.0,1934.9,5.86001169]
[1741972520762,1.03362,1934.9,1934.8,5.59896]
[1741972520958,2.35952,1934.9,1934.8,5.59896]
[1741972521162,2.35952,1934.9,1934.8,4.5653]
[1741972523255,0.00775936,1935.0,1934.9,1.03362]
[1741972523460,0.00775936,1935.0,1934.9,2.48702]
[1741972523659,1.37615936,1935.0,1934.9,6.18402]
[1741972524560,0.00775936,1935.0,1934.9,6.18402]
[1741972526969,0.00775936,1935.0,1934.9,8.68402]
[1741972529077,0.00775936,1935.0,1934.9,6.18402]
[1741972531078,0.00775936,1935.0,1934.9,2.48702]
[1741972531379,1.04132936,1935.0,1934.9,5.1494]
[1741972531571,1.03362,1934.9,1934.8,9.06781169]
[1741972531773,3.87322,1934.9,1934.8,10.10148169]
[1741972531979,2.8396,1934.9,1934.8,10.10148169]
[1741972532172,3.87322,1934.9,1934.8,11.50998169]
[1741972532481,3.87322,1934.9,1934.8,5.64997]
[1741972533683,3.87322,1934.9,1934.8,3.2078]
[1741972534186,1.03373,1934.7,1934.6,3.2078]
[1741972534872,1.03394,1934.3,1934.2,6.9028]
[1741972535077,3.90008,1934.6,1934.2,3.2078]
[1741972535272,1.03394,1934.3,1934.2,5.61828]
[1741972535976,1.03394,1934.3,1934.2,4.5843]
[1741972536178,1.03394,1934.3,1934.2,3.2078]
[1741972536370,1.03399,1934.2,1934.1,28.68575936]
[1741972537073,1.03399,1934.2,1934.1,29.71980936]
[1741972537474,1.03399,1934.2,1934.1,28.68575936]
[1741972537674,2.35899,1934.2,1934.1,28.68575936]
[1741972538076,3.06369,1934.2,1934.1,0.00775936]
[1741972538276,1.03415,1933.9,1933.8,3.2078]
[1741972538672,2.58543,1933.9,1933.5,3.2078]
[1741972538877,1.03431,1933.6,1933.5,3.2078]
[1741972539387,1.03437,1933.5,1933.4,28.666]
[1741972539584,2.35937,1933.5,1933.4,28.666]
[1741972540379,1.325,1933.5,1933.4,31.15102]
[1741972540581,0.00775936,1933.7,1933.4,30.1166]
[1741972540772,0.00775936,1933.7,1933.6,1.03431]
[1741972541170,0.00775936,1933.7,1933.6,2.48491]
[1741972541576,0.00775936,1933.7,1933.6,6.17991]
[1741972541981,0.00775936,1933.7,1933.6,12.03992169]
[1741972543986,0.00775936,1933.7,1933.6,8.34492169]
[1741972544285,0.00775936,1933.7,1933.6,12.03992169]
[1741972546083,0.00775936,1933.7,1933.6,14.53992169]
[1741972546284,1.3135,1934.2,1934.1,1.03405]
[1741972546482,1.3135,1934.2,1934.1,4.24185]
[1741972546787,1.03405,1934.1,1934.0,1.03407]
[1741972546985,1.03405,1934.1,1934.0,2.34747]
[1741972547889,2.35529936,1934.2,1934.1,1.03405]
[1741972548093,2.35529936,1934.2,1934.1,4.24185]
[1741972548790,1.32125936,1934.2,1934.1,4.24185]
[1741972549290,2.35524936,1934.2,1934.1,4.24185]
[1741972550091,2.35524936,1934.2,1934.1,3.2078]
[1741972551295,2.35524936,1934.2,1934.1,4.24185]
[1741972552291,2.35524936,1934.2,1934.1,3.2078]
[1741972553495,2.35524936,1934.2,1934.1,4.24185]
[1741972554195,1.32125936,1934.2,1933.9,4.24193]
[1741972554491,1.32125936,1934.2,1933.9,3.2078]
[1741972554492,1.0341,1934.0,1933.9,3.2078]
[1741972555094,1.0341,1934.0,1933.9,4.24195]
[1741972555392,1.0341,1934.0,1933.9,4.603]
[1741972555593,1.0341,1934.0,1933.9,3.2078]
[1741972555787,1.0341,1934.0,1933.9,4.24195]
[1741972555995,1.0341,1934.0,1933.9,3.2078]
[1741972556785,1.7473,1934.0,1933.9,3.2078]
[1741972556991,1.03421,1933.8,1933.7,3.2078]
[1741972557191,1.03421,1933.8,1933.5,0.00775936]
[1741972557192,1.03431,1933.6,1933.5,0.00775936]
[1741972557790,2.44411,1933.6,1933.5,0.00775936]
[1741972560798,2.44411,1933.6,1933.5,1.41965936]
[1741972561899,2.44411,1933.6,1933.5,0.00775936]
[1741972562094,2.44411,1933.6,1933.2,3.2078]
[1741972562095,1.03447,1933.3,1933.2,4.5766]
[1741972562401,1.03447,1933.3,1933.2,5.61113]
[1741972562600,1.03447,1933.3,1933.2,4.5766]
[1741972562988,3.09757,1933.3,1933.2,4.5766]
[1741972563394,3.09757,1933.3,1933.2,5.61113]
[1741972563700,3.09757,1933.3,1933.2,4.5766]
[1741972564897,3.09757,1933.3,1933.2,5.61113]
[1741972565104,3.09757,1933.3,1933.2,4.5766]
[1741972566197,3.09757,1933.3,1933.2,5.61113]
[1741972567605,3.09757,1933.3,1933.2,4.5766]
[1741972568605,3.09757,1933.3,1933.2,5.61113]
[1741972568799,3.09757,1933.3,1933.2,4.5766]
[1741972569392,3.09757,1933.3,1933.2,5.61113]
[1741972571105,3.09757,1933.3,1933.2,4.5766]
[1741972571599,3.09757,1933.3,1933.2,5.61113]
[1741972572103,1.0344,1933.5,1933.4,1.03437]
[1741972572299,1.0344,1933.5,1933.4,4.24217]
[1741972572499,1.0344,1933.5,1933.4,5.67387]
[1741972573006,1.0344,1933.5,1933.4,4.6395]
[1741972573197,2.4059,1933.5,1933.4,4.6395]
[1741972575505,2.4059,1933.5,1933.4,3.2078]
[1741972575711,1.03447,1933.3,1933.2,5.61813]
[1741972575906,1.03447,1933.3,1933.2,3.2078]
[1741972576111,2.41577,1933.3,1933.2,3.2078]
[1741972576312,3.07687,1933.3,1933.2,3.2078]
[1741972576908,4.62862,1933.3,1933.0,4.24242]
[1741972577108,1.03458,1933.1,1933.0,4.24242]
[1741972577907,1.03458,1933.1,1933.0,3.2078]
[1741972578102,2.36008,1933.1,1933.0,3.2078]
[1741972580815,2.58667,1933.0,1932.8,3.2078]
[1741972581016,3.30617,1933.0,1932.8,4.24252]
[1741972581211,2.35149,1932.9,1932.8,3.2078]
[1741972581608,1.03469,1932.9,1932.8,4.24254]
[1741972582317,1.03469,1932.9,1932.8,3.2078]
[1741972584117,1.03485,1932.6,1932.5,5.86001169]
[1741972584413,1.0349,1932.5,1932.4,3.8822]
[1741972584608,2.4179,1932.5,1932.4,0.6744]
[1741972586722,1.03501,1932.3,1932.2,4.24282]
[1741972588106,1.03501,1932.3,1932.2,3.2078]
[1741972588708,2.40241,1932.3,1932.2,3.2078]
[1741972589616,1.03501,1932.3,1932.2,3.2078]
[1741972590212,1.03501,1932.3,1932.2,4.24286]
[1741972590520,1.03501,1932.3,1932.2,3.2078]
[1741972590722,2.36951,1932.3,1932.2,3.2078]
[1741972591419,1.03501,1932.3,1932.2,4.24286]
[1741972592207,1.03501,1932.3,1932.2,3.2078]
[1741972592413,2.43291,1932.3,1932.2,3.2078]
[1741972592919,2.43291,1932.3,1932.2,4.24286]
[1741972593615,1.035,1932.4,1932.3,1.03501]
[1741972593816,4.72686,1932.7,1932.6,1.03482]
[1741972594017,1.03486,1932.7,1932.6,1.03482]
[1741972594223,2.43276,1932.7,1932.6,1.03482]
[1741972595422,1.03485,1932.6,1932.5,3.2078]
[1741972595719,3.12945,1932.6,1932.5,1.3543]
[1741972596515,1.03496,1932.4,1932.3,0.6903]
[1741972597018,1.03501,1932.3,1932.2,4.24284]
[1741972597219,1.71181,1932.3,1932.2,4.24284]
[1741972597419,1.03501,1932.3,1932.2,4.24284]
[1741972597820,3.18749,1932.4,1932.3,1.03501]
[1741972598122,1.03499,1932.4,1932.3,1.3543]
[1741972598314,2.37389,1932.4,1932.3,1.3543]
[1741972601421,1.03499,1932.4,1932.3,2.38931]
[1741972602325,1.03499,1932.4,1932.2,3.2078]
[1741972602326,1.03501,1932.3,1932.2,3.2078]
[1741972602621,2.44501,1932.3,1932.2,4.24286]
[1741972603018,1.03501,1932.3,1932.2,4.24286]
[1741972603323,2.42626,1932.5,1932.4,1.03496]
[1741972603718,2.42626,1932.5,1932.4,4.24276]
[1741972603924,1.0348,1932.7,1932.6,1.03485]
[1741972604220,1.03485,1932.6,1932.5,2.40115]
[1741972606519,1.03485,1932.6,1932.5,1.3663]
[1741972606921,1.03501,1932.3,1932.2,4.24282]
[1741972607122,1.03501,1932.3,1932.2,5.66676]
[1741972607919,2.39771,1932.3,1932.2,4.6317]
[1741972608721,2.39771,1932.3,1932.2,5.66676]
[1741972608920,1.035,1932.4,1932.3,1.03496]
[1741972609226,1.035,1932.4,1932.3,2.46716]
[1741972610532,1.035,1932.4,1932.3,1.4322]
[1741972610720,2.3623,1932.4,1932.3,1.4322]
[1741972611628,2.3623,1932.4,1932.3,2.46721]
[1741972611829,2.3623,1932.4,1932.3,1.4322]
[1741972612632,2.3623,1932.4,1932.3,2.46721]
[1741972612833,2.3623,1932.4,1932.3,1.4322]
[1741972613232,2.3623,1932.4,1932.3,2.46721]
[1741972614540,1.035,1932.4,1932.3,2.46721]
[1741972615128,2.3574,1932.4,1932.3,2.46721]
[1741972615834,1.035,1932.4,1932.3,2.46721]
[1741972616336,2.3574,1932.4,1932.3,2.46721]
[1741972618027,2.3574,1932.4,1932.3,1.4322]
[1741972618433,2.3574,1932.4,1932.3,2.46721]
[1741972618943,2.3574,1932.4,1932.3,1.4322]
[1741972622032,1.03501,1932.3,1932.2,3.2078]
[1741972622237,2.36601,1932.3,1932.2,4.5523]
[1741972622640,2.36601,1932.3,1932.2,5.58736]
[1741972622834,1.03489,1932.6,1932.5,1.03485]
[1741972623138,2.58686,1932.8,1932.5,1.03485]
[1741972623139,3.09215,1932.7,1932.6,1.03485]
[1741972623338,1.03485,1932.6,1932.5,6.37158]
[1741972623535,0.6947,1932.8,1932.6,1.0348]
[1741972623839,1.03469,1932.9,1932.8,1.03474]
[1741972624039,1.03474,1932.8,1932.7,4.24255]
[1741972627041,1.03485,1932.6,1932.5,7.6169]
[1741972627239,1.03485,1932.6,1932.5,3.9289]
[1741972627437,1.03485,1932.6,1932.5,4.9638]
[1741972627638,1.03485,1932.6,1932.5,0.7211]
[1741972627839,1.75855,1932.6,1932.5,0.7211]
[1741972628038,1.75855,1932.6,1932.5,1.756]
[1741972628440,1.75855,1932.6,1932.5,4.9638]
[1741972628935,1.75855,1932.6,1932.5,3.9289]
[1741972629136,0.7237,1932.6,1932.1,3.2078]
[1741972629344,1.03512,1932.2,1932.1,3.2078]
[1741972629845,1.03512,1932.2,1932.1,4.24292]
[1741972630145,1.3386,1932.3,1932.2,1.03502]
[1741972630146,1.03504,1932.3,1932.2,1.03502]
[1741972630339,0.7237,1932.6,1932.1,3.2078]
[1741972630543,1.0349,1932.6,1932.5,1.03488]
[1741972630751,1.3386,1932.7,1932.4,4.24272]
[1741972630752,1.0349,1932.5,1932.4,4.24272]
[1741972631044,0.00775936,1933.1,1933.0,1.03464]
[1741972631240,1.03468,1933.0,1932.9,1.03467]
[1741972631547,0.7201,1933.0,1932.9,1.03469]
[1741972632048,1.03469,1932.9,1932.8,0.7236]
[1741972632249,1.03469,1932.9,1932.8,1.75834]
[1741972632643,1.03469,1932.9,1932.8,0.7236]
[1741972632944,1.03469,1932.9,1932.8,1.75834]
[1741972633150,1.03469,1932.9,1932.8,0.7236]
[1741972633349,2.38449,1932.9,1932.8,0.7236]
[1741972635454,1.03474,1932.8,1932.7,3.2078]
[1741972635659,2.46074,1932.8,1932.7,3.2078]
[1741972635843,2.46074,1932.8,1932.7,4.2426]
[1741972636049,2.46074,1932.8,1932.7,3.2078]
[1741972636753,0.7201,1933.0,1932.7,4.5343]
[1741972636951,0.00775936,1933.1,1932.9,4.24246]
[1741972637150,1.04233936,1933.1,1933.0,2.7131]
[1741972637643,2.46833936,1933.1,1933.0,2.7131]
[1741972637845,1.04233936,1933.1,1933.0,2.7131]
[1741972638050,2.48413936,1933.1,1933.0,2.0222]